[Event "Gibraltar Junior Intl U16 2019"]
[Site "Caleta"]
[Date "2019.08.18"]
[Round "4.10"]
[White "Mendis, Vidura"]
[Black "Gutierrez Lupion, Daniel"]
[Result "0-1"]
[ECO "B23"]
[WhiteElo "1528"]
[BlackElo "1811"]
[Annotator "NA"]
[PlyCount "90"]
[EventDate "2019.08.16"]
[EventType "swiss"]
[EventCountry "GGB"]
[SourceTitle "playchess.com"]
[Source "ChessBase"]
[SourceQuality "1"]
[TimeControl "6600+10"]

1. e4 {[%emt 0:00:00]} c5 {[%emt 0:00:00]} 2. Nc3 {[%emt 0:00:10]} a6 {[%emt 0:00:11]} 3. f4 {[%emt 0:00:15]} b5 {[%emt 0:00:20]} 4. Nf3 {[%emt 0:01:10]} Bb7 {[%emt 0:00:19]} 5. d3 {[%emt 0:00:39]} d6 {[%emt 0:00:22]} 6. b3 {[%emt 0:00:24]} Nf6 {[%emt 0:00:19]} 7. Be2 {[%emt 0:00:09]} e6 {[%emt 0:00:31]} 8. O-O {[%emt 0:00:10]} Be7 {[%emt 0:00:23]} 9. Qe1 {[%emt 0:00:52]} O-O {[%emt 0:00:48]} 10. Qg3 {[%emt 0:06:24]} Nbd7 {[%emt 0:03:41]} 11. f5 {[%emt 0:02:23]} exf5 {[%emt 0:01:17]} 12. exf5 {[%emt 0:00:48]} Kh8 {[%emt 0:01:18]} 13. Qh3 {[%emt 0:02:56]} b4 {[%emt 0:02:19]} 14. Nd1 {[%emt 0:01:58]} Nd5 {[%emt 0:02:06]} 15. Nf2 {[%emt 0:04:13]} Nc3 {[%emt 0:00:44]} 16. Re1 {[%emt 0:02:24]} Bf6 {[%emt 0:00:58]} 17. Bf4 {[%emt 0:04:31]} Nxe2+ {[%emt 0:01:35]} 18. Rxe2 {[%emt 0:00:09]} Bxf3 {[%emt 0:00:26]} 19. Qxf3 {[%emt 0:00:16]} Bxa1 {[%emt 0:00:29]} 20. Bxd6 {[%emt 0:00:45]} Re8 {[%emt 0:00:29]} 21. Rxe8+ {[%emt 0:01:10]} Qxe8 {[%emt 0:00:05]} 22. Kf1 {[%emt 0:00:20]} Bd4 {[%emt 0:01:47]} 23. Ne4 {[%emt 0:00:54]} Nf6 {[%emt 0:01:02]} 24. Nd2 {[%emt 0:00:24]} Rd8 {[%emt 0:00:50]} 25. Nc4 {[%emt 0:00:17]} Bc3 {[%emt 0:00:53]} 26. Bg3 {[%emt 0:01:01]} Nd5 {[%emt 0:01:54]} 27. Qf2 {[%emt 0:04:40]} Bd4 {[%emt 0:01:38]} 28. Qf3 {[%emt 0:00:13]} Ne3+ {[%emt 0:00:19]} 29. Nxe3 {[%emt 0:00:15]} Qxe3 {[%emt 0:00:09]} 30. Qxe3 {[%emt 0:00:09]} Bxe3 {[%emt 0:00:03]} 31. Bh4 {[%emt 0:01:49]} Re8 {[%emt 0:00:15]} 32. Bg3 {[%emt 0:01:02]} g6 {[%emt 0:00:25]} 33. fxg6 {[%emt 0:00:15]} fxg6 {[%emt 0:00:02]} 34. Bh4 {[%emt 0:00:23]} Kg7 {[%emt 0:00:20]} 35. Bg3 {[%emt 0:00:06]} Kf6 {[%emt 0:00:11]} 36. Bh4+ {[%emt 0:00:04]} Ke5 {[%emt 0:00:13]} 37. Bg3+ {[%emt 0:00:12]} Kd4 {[%emt 0:00:08]} 38. Be1 {[%emt 0:00:15]} Bf4 {[%emt 0:00:18]} 39. g3 {[%emt 0:00:13]} Bg5 {[%emt 0:00:41]} 40. h3 {[%emt 0:00:10]} Rxe1+ {[%emt 0:00:58]} 41. Kxe1 {[%emt 0:00:07]} Kc3 {[%emt 0:00:02]} 42. Kd1 {[%emt 0:00:07]} Kb2 {[%emt 0:00:09]} 43. g4 {[%emt 0:00:16]} Kxa2 {[%emt 0:00:23]} 44. Ke2 {[%emt 0:00:08]} Kb2 {[%emt 0:00:04]} 45. Kd1 {[%emt 0:00:04]} Bf4 {[%emt 0:00:06]} 0-1

[Event "Gibraltar Junior Intl U16 2019"]
[Site "Caleta"]
[Date "2019.08.18"]
[Round "4.11"]
[White "Hussain, Adam"]
[Black "Lorente Serrano, Rosa Adela"]
[Result "0-1"]
[ECO "D01"]
[WhiteElo "1515"]
[BlackElo "1810"]
[Annotator "NA"]
[PlyCount "68"]
[EventDate "2019.08.16"]
[EventType "swiss"]
[EventCountry "GGB"]
[SourceTitle "playchess.com"]
[Source "ChessBase"]
[SourceQuality "1"]
[TimeControl "6600+10"]

1. d4 {[%emt 0:00:00]} Nf6 {[%emt 0:00:12]} 2. Nc3 {[%emt 0:00:00]} d5 {[%emt 0:03:40]} 3. Bg5 {[%emt 0:01:23]} Nbd7 {[%emt 0:01:03]} 4. e3 {[%emt 0:00:09]} g6 {[%emt 0:01:10]} 5. Bd3 {[%emt 0:01:09]} Bg7 {[%emt 0:00:22]} 6. Nge2 {[%emt 0:02:56]} O-O {[%emt 0:02:41]} 7. Ng3 {[%emt 0:00:42]} c5 {[%emt 0:10:59]} 8. Qd2 {[%emt 0:02:53]} h6 {[%emt 0:03:23]} 9. Bxf6 {[%emt 0:00:12]} Nxf6 {[%emt 0:00:03]} 10. O-O-O {[%emt 0:01:33]} cxd4 {[%emt 0:03:41]} 11. exd4 {[%emt 0:01:31]} a6 {[%emt 0:01:19]} 12. Nce2 {[%emt 0:01:13]} b5 {[%emt 0:02:08]} 13. h4 {[%emt 0:00:08]} h5 {[%emt 0:01:30]} 14. Qg5 {[%emt 0:08:31]} Ng4 {[%emt 0:04:38]} 15. Qd2 {[%emt 0:04:48]} Nxf2 {[%emt 0:02:50]} 16. Rdf1 {[%emt 0:00:34]} Nxh1 {[%emt 0:00:06]} 17. Rxh1 {[%emt 0:00:02]} Bg4 {[%emt 0:01:37]} 18. Kb1 {[%emt 0:01:46]} Qd6 {[%emt 0:02:51]} 19. Re1 {[%emt 0:05:23]} Qf6 {[%emt 0:06:35]} 20. Rf1 {[%emt 0:02:39]} Qxh4 {[%emt 0:00:22]} 21. Rh1 {[%emt 0:01:02]} Qf6 {[%emt 0:00:05]} 22. Rf1 {[%emt 0:02:05]} Qd6 {[%emt 0:00:16]} 23. Qg5 {[%emt 0:00:23]} e5 {[%emt 0:02:56]} 24. c3 {[%emt 0:01:41]} e4 {[%emt 0:00:27]} 25. Bc2 {[%emt 0:00:06]} Qd8 {[%emt 0:02:09]} 26. Qe3 {[%emt 0:01:29]} Bxe2 {[%emt 0:02:26]} 27. Nxe2 {[%emt 0:00:19]} a5 {[%emt 0:08:30]} 28. Bd1 {[%emt 0:01:48]} b4 {[%emt 0:00:50]} 29. Nf4 {[%emt 0:00:10]} Bh6 {[%emt 0:01:01]} 30. Qg3 {[%emt 0:00:48]} Bxf4 {[%emt 0:00:11]} 31. Rxf4 {[%emt 0:00:09]} bxc3 {[%emt 0:00:40]} 32. Bxh5 {[%emt 0:03:51]} Qb6 {[%emt 0:00:13]} 33. b3 {[%emt 0:02:11]} Qxd4 {[%emt 0:00:53]} 34. Bxg6 {[%emt 0:00:59]} Qd1# {[%emt 0:00:06]} 0-1

[Event "Gibraltar Junior Intl U16 2019"]
[Site "Caleta"]
[Date "2019.08.18"]
[Round "4.12"]
[White "Tadevosyan, Aspet"]
[Black "Dharmasena, Gavith"]
[Result "1-0"]
[ECO "D35"]
[WhiteElo "2038"]
[BlackElo "1585"]
[Annotator "NA"]
[PlyCount "58"]
[EventDate "2019.08.16"]
[EventType "swiss"]
[EventCountry "GGB"]
[SourceTitle "playchess.com"]
[Source "ChessBase"]
[SourceQuality "1"]
[TimeControl "6600+10"]

1. d4 {[%emt 0:00:00]} Nf6 {[%emt 0:00:05]} 2. c4 {[%emt 0:00:04]} e6 {[%emt 0:00:44]} 3. Nc3 {[%emt 0:00:05]} d5 {[%emt 0:02:03]} 4. cxd5 {[%emt 0:00:13]} exd5 {[%emt 0:00:09]} 5. Bg5 {[%emt 0:00:05]} Be7 {[%emt 0:00:14]} 6. e3 {[%emt 0:00:09]} h6 {[%emt 0:00:14]} 7. Bh4 {[%emt 0:00:28]} O-O {[%emt 0:00:19]} 8. Bd3 {[%emt 0:00:13]} Be6 {[%emt 0:01:02]} 9. Nge2 {[%emt 0:02:45]} Nbd7 {[%emt 0:03:20]} 10. Nf4 {[%emt 0:02:43]} c6 {[%emt 0:01:21]} 11. Nxe6 {[%emt 0:03:15]} fxe6 {[%emt 0:00:43]} 12. Bg3 {[%emt 0:06:34]} Nb6 {[%emt 0:14:20]} 13. O-O {[%emt 0:10:09]} Bd6 {[%emt 0:00:07]} 14. Be5 {[%emt 0:00:26]} Bxe5 {[%emt 0:00:34]} 15. dxe5 {[%emt 0:00:06]} Nfd7 {[%emt 0:00:57]} 16. f4 {[%emt 0:01:27]} Nc5 {[%emt 0:02:01]} 17. Be2 {[%emt 0:09:35]} Qe7 {[%emt 0:04:41]} 18. b4 {[%emt 0:00:56]} Ncd7 {[%emt 0:00:21]} 19. a3 {[%emt 0:03:39]} Rac8 {[%emt 0:04:32]} 20. Bd3 {[%emt 0:03:06]} a6 {[%emt 0:02:03]} 21. Qg4 {[%emt 0:01:26]} Rfd8 {[%emt 0:01:45]} 22. Ne2 {[%emt 0:03:35]} c5 {[%emt 0:02:38]} 23. bxc5 {[%emt 0:00:20]} Rxc5 {[%emt 0:01:01]} 24. Nd4 {[%emt 0:00:30]} Re8 {[%emt 0:00:28]} 25. Bg6 {[%emt 0:00:56]} Rec8 {[%emt 0:01:42]} 26. Nxe6 {[%emt 0:04:48]} Rc3 {[%emt 0:01:13]} 27. Bf5 {[%emt 0:00:28]} Qf7 {[%emt 0:02:16]} 28. Nd4 {[%emt 0:01:06]} h5 {[%emt 0:03:54]} 29. Qg5 {[%emt 0:00:15]} Rxe3 {[%emt 0:00:33]} 1-0

[Event "Gibraltar Junior Intl U16 2019"]
[Site "Caleta"]
[Date "2019.08.18"]
[Round "4.13"]
[White "Onslow, Teddy"]
[Black "Guerreiro, Jose Velho"]
[Result "1-0"]
[ECO "B13"]
[WhiteElo "1739"]
[BlackElo "1513"]
[Annotator "NA"]
[PlyCount "115"]
[EventDate "2019.08.16"]
[EventType "swiss"]
[EventCountry "GGB"]
[SourceTitle "playchess.com"]
[Source "ChessBase"]
[SourceQuality "1"]
[TimeControl "6600+10"]

1. d4 {[%emt 0:00:00]} d5 {[%emt 0:00:16]} 2. Bf4 {[%emt 0:00:00]} Nf6 {[%emt 0:00:31]} 3. e3 {[%emt 0:00:04]} e6 {[%emt 0:00:15]} 4. Bd3 {[%emt 0:00:32]} c5 {[%emt 0:01:23]} 5. c3 {[%emt 0:00:42]} Nc6 {[%emt 0:01:32]} 6. Nd2 {[%emt 0:00:13]} cxd4 {[%emt 0:01:40]} 7. exd4 {[%emt 0:00:20]} Bd6 {[%emt 0:00:36]} 8. Bxd6 {[%emt 0:00:27]} Qxd6 {[%emt 0:00:14]} 9. Ngf3 {[%emt 0:00:06]} O-O {[%emt 0:00:35]} 10. O-O {[%emt 0:00:09]} a5 {[%emt 0:04:38]} 11. a4 {[%emt 0:01:22]} b6 {[%emt 0:01:26]} 12. Qe2 {[%emt 0:02:44]} Re8 {[%emt 0:08:51]} 13. Ne5 {[%emt 0:02:18]} Nb8 {[%emt 0:13:21]} 14. f4 {[%emt 0:06:19]} Ba6 {[%emt 0:01:41]} 15. Ndf3 {[%emt 0:07:54]} Ne4 {[%emt 0:06:48]} 16. Bxa6 {[%emt 0:05:00]} Nxa6 {[%emt 0:01:06]} 17. Ng5 {[%emt 0:13:07]} f6 {[%emt 0:08:04]} 18. Nxe4 {[%emt 0:01:32]} dxe4 {[%emt 0:00:27]} 19. Nc4 {[%emt 0:04:17]} Qc6 {[%emt 0:07:47]} 20. Rfe1 {[%emt 0:15:21]} Nc7 {[%emt 0:03:24]} 21. Nd2 {[%emt 0:03:25]} f5 {[%emt 0:02:30]} 22. Nc4 {[%emt 0:02:17]} Nd5 {[%emt 0:01:22]} 23. Ne5 {[%emt 0:00:10]} Qc7 {[%emt 0:01:02]} 24. g3 {[%emt 0:00:17]} g6 {[%emt 0:00:34]} 25. Qb5 {[%emt 0:03:02]} Rac8 {[%emt 0:07:10]} 26. Rac1 {[%emt 0:01:31]} Red8 {[%emt 0:01:11]} 27. h3 {[%emt 0:06:34]} Kg7 {[%emt 0:01:30]} 28. Kh2 {[%emt 0:00:54]} Kg8 {[%emt 0:01:01]} 29. Rg1 {[%emt 0:03:51]} Kf8 {[%emt 0:02:52]} 30. Rce1 {[%emt 0:01:14]} Qd6 {[%emt 0:05:24]} 31. Rg2 {[%emt 0:05:51]} Qc7 {[%emt 0:03:57]} 32. Rf2 {[%emt 0:01:51]} Nf6 {[%emt 0:05:57]} 33. g4 {[%emt 0:03:24]} Rd5 {[%emt 0:02:30]} 34. Qe2 {[%emt 0:00:21]} Qe7 {[%emt 0:01:41]} 35. Rg2 {[%emt 0:04:52]} Qe8 {[%emt 0:01:52]} 36. Qf2 {[%emt 0:05:04]} Qe7 {[%emt 0:02:58]} 37. Reg1 {[%emt 0:00:51]} Rc7 {[%emt 0:00:52]} 38. gxf5 {[%emt 0:00:59]} exf5 {[%emt 0:00:11]} 39. Rxg6 {[%emt 0:01:43]} Rxe5 {[%emt 0:01:18]} 40. Rxf6+ {[%emt 0:00:21]} Qxf6 {[%emt 0:00:20]} 41. dxe5 {[%emt 0:00:09]} Qe6 {[%emt 0:01:10]} 42. Rd1 {[%emt 0:01:13]} Rd7 {[%emt 0:00:46]} 43. Rd4 {[%emt 0:01:08]} Qc6 {[%emt 0:00:18]} 44. Qd2 {[%emt 0:00:06]} Ke7 {[%emt 0:00:58]} 45. Rxd7+ {[%emt 0:00:12]} Qxd7 {[%emt 0:00:02]} 46. Qxd7+ {[%emt 0:00:12]} Kxd7 {[%emt 0:00:01]} 47. b4 {[%emt 0:00:33]} Kc6 {[%emt 0:00:13]} 48. Kg2 {[%emt 0:00:15]} Kd5 {[%emt 0:00:12]} 49. Kf2 {[%emt 0:00:05]} h6 {[%emt 0:00:03]} 50. Ke3 {[%emt 0:00:28]} h5 {[%emt 0:00:12]} 51. h4 {[%emt 0:00:10]} Ke6 {[%emt 0:00:16]} 52. Kd4 {[%emt 0:00:16]} Kd7 {[%emt 0:00:01]} 53. b5 {[%emt 0:00:23]} Kc7 {[%emt 0:00:09]} 54. c4 {[%emt 0:00:06]} Kd7 {[%emt 0:00:08]} 55. c5 {[%emt 0:00:24]} bxc5+ {[%emt 0:00:10]} 56. Kc4 {[%emt 0:00:00]} e3 {[%emt 0:00:23]} 57. Kd3 {[%emt 0:00:02]} c4+ {[%emt 0:00:02]} 58. Kxe3 {[%emt 0:00:01]} 1-0

[Event "Gibraltar Junior Intl U16 2019"]
[Site "Caleta"]
[Date "2019.08.18"]
[Round "4.14"]
[White "Aubury, Benjamin"]
[Black "Usharovsky, Ron"]
[Result "1/2-1/2"]
[ECO "D14"]
[WhiteElo "1686"]
[BlackElo "1670"]
[Annotator "NA"]
[PlyCount "47"]
[EventDate "2019.08.16"]
[EventType "swiss"]
[EventCountry "GGB"]
[SourceTitle "playchess.com"]
[Source "ChessBase"]
[SourceQuality "1"]
[TimeControl "6600+10"]

1. Nf3 {[%emt 0:00:22]} Nf6 {[%emt 0:00:09]} 2. c4 {[%emt 0:00:24]} c6 {[%emt 0:00:16]} 3. d4 {[%emt 0:00:22]} d5 {[%emt 0:00:07]} 4. cxd5 {[%emt 0:00:28]} cxd5 {[%emt 0:00:11]} 5. Nc3 {[%emt 0:00:18]} Nc6 {[%emt 0:00:19]} 6. Bf4 {[%emt 0:00:53]} Bf5 {[%emt 0:01:25]} 7. Qb3 {[%emt 0:01:16]} Qd7 {[%emt 0:01:21]} 8. e3 {[%emt 0:01:07]} a6 {[%emt 0:00:59]} 9. h3 {[%emt 0:02:25]} e6 {[%emt 0:02:03]} 10. Nh4 {[%emt 0:04:02]} Be4 {[%emt 0:03:43]} 11. Be2 {[%emt 0:09:43]} h6 {[%emt 0:04:33]} 12. Nf3 {[%emt 0:04:35]} Be7 {[%emt 0:02:20]} 13. Rc1 {[%emt 0:07:04]} O-O {[%emt 0:02:05]} 14. O-O {[%emt 0:01:31]} Bxf3 {[%emt 0:06:42]} 15. Bxf3 {[%emt 0:00:25]} Bd6 {[%emt 0:01:35]} 16. Bxd6 {[%emt 0:02:11]} Qxd6 {[%emt 0:00:17]} 17. Na4 {[%emt 0:01:36]} Rab8 {[%emt 0:14:10]} 18. a3 {[%emt 0:04:32]} Nd7 {[%emt 0:03:03]} 19. Rc2 {[%emt 0:04:23]} Na5 {[%emt 0:10:14]} 20. Qc3 {[%emt 0:06:11]} Nc4 {[%emt 0:01:31]} 21. Ra1 {[%emt 0:05:30]} b5 {[%emt 0:03:35]} 22. Nc5 {[%emt 0:00:52]} Nxc5 {[%emt 0:00:31]} 23. dxc5 {[%emt 0:00:11]} Qe5 {[%emt 0:00:46]} 24. Qxe5 {[%emt 0:03:08]} 1/2-1/2

[Event "Gibraltar Junior Intl U16 2019"]
[Site "Caleta"]
[Date "2019.08.18"]
[Round "4.15"]
[White "Patel, Devan"]
[Black "Martinez Soriano, Javier"]
[Result "0-1"]
[ECO "A04"]
[WhiteElo "1659"]
[BlackElo "1992"]
[Annotator "NA"]
[PlyCount "80"]
[EventDate "2019.08.16"]
[EventType "swiss"]
[EventCountry "GGB"]
[SourceTitle "playchess.com"]
[Source "ChessBase"]
[SourceQuality "1"]
[TimeControl "6600+10"]

1. d4 {[%emt 0:00:00]} e6 {[%emt 0:00:09]} 2. c4 {[%emt 0:00:02]} b6 {[%emt 0:00:05]} 3. Nf3 {[%emt 0:00:04]} Bb7 {[%emt 0:00:33]} 4. g3 {[%emt 0:00:05]} g6 {[%emt 0:00:22]} 5. Bg2 {[%emt 0:00:05]} Bg7 {[%emt 0:00:10]} 6. O-O {[%emt 0:00:07]} Ne7 {[%emt 0:00:11]} 7. Nc3 {[%emt 0:10:15]} O-O {[%emt 0:00:37]} 8. h4 {[%emt 0:09:44]} d6 {[%emt 0:04:46]} 9. e4 {[%emt 0:05:44]} c5 {[%emt 0:03:20]} 10. d5 {[%emt 0:07:31]} Ba6 {[%emt 0:04:17]} 11. Qb3 {[%emt 0:07:29]} e5 {[%emt 0:01:09]} 12. Bd2 {[%emt 0:15:39]} f5 {[%emt 0:01:19]} 13. Ng5 {[%emt 0:00:56]} Re8 {[%emt 0:05:37]} 14. Ne6 {[%emt 0:01:27]} Qc8 {[%emt 0:00:09]} 15. Bh3 {[%emt 0:11:57]} Nd7 {[%emt 0:01:34]} 16. Bg5 {[%emt 0:02:04]} Bf6 {[%emt 0:10:06]} 17. Bh6 {[%emt 0:03:37]} Nb8 {[%emt 0:02:00]} 18. Kh2 {[%emt 0:02:40]} Nbc6 {[%emt 0:02:23]} 19. exf5 {[%emt 0:11:30]} gxf5 {[%emt 0:00:25]} 20. g4 {[%emt 0:01:32]} Nd4 {[%emt 0:06:26]} 21. Nxd4 {[%emt 0:06:02]} exd4 {[%emt 0:04:43]} 22. Ne4 {[%emt 0:04:56]} fxe4 {[%emt 0:01:58]} 23. g5 {[%emt 0:00:47]} Be5+ {[%emt 0:00:42]} 24. Kg2 {[%emt 0:00:04]} Nf5 {[%emt 0:01:15]} 25. f4 {[%emt 0:00:56]} Bg7 {[%emt 0:02:03]} 26. Bxg7 {[%emt 0:00:25]} Kxg7 {[%emt 0:00:10]} 27. Qa4 {[%emt 0:00:23]} Bxc4 {[%emt 0:00:26]} 28. Bxf5 {[%emt 0:00:19]} Bxf1+ {[%emt 0:00:05]} 29. Rxf1 {[%emt 0:00:06]} Qxf5 {[%emt 0:00:04]} 30. h5 {[%emt 0:00:10]} e3 {[%emt 0:01:25]} 31. h6+ {[%emt 0:00:06]} Kh8 {[%emt 0:00:20]} 32. Qc6 {[%emt 0:00:18]} e2 {[%emt 0:00:18]} 33. Re1 {[%emt 0:00:02]} Qg4+ {[%emt 0:00:08]} 34. Kf2 {[%emt 0:00:02]} Qh4+ {[%emt 0:00:10]} 35. Kf3 {[%emt 0:00:05]} Qxe1 {[%emt 0:01:38]} 36. Qxd6 {[%emt 0:00:02]} Qf1+ {[%emt 0:00:07]} 37. Kg4 {[%emt 0:00:03]} Qg2+ {[%emt 0:00:07]} 38. Kf5 {[%emt 0:00:13]} Qe4+ {[%emt 0:00:11]} 39. Kf6 {[%emt 0:00:05]} Rf8+ {[%emt 0:00:14]} 40. Qxf8+ {[%emt 0:00:04]} Rxf8# {[%emt 0:00:12] Ke5} 0-1

[Event "Gibraltar Junior Intl U16 2019"]
[Site "Caleta"]
[Date "2019.08.18"]
[Round "4.16"]
[White "Bartelt, Max Peter"]
[Black "Gough, Theo"]
[Result "1-0"]
[ECO "E01"]
[WhiteElo "1803"]
[BlackElo "1474"]
[Annotator "NA"]
[PlyCount "115"]
[EventDate "2019.08.16"]
[EventType "swiss"]
[EventCountry "GGB"]
[SourceTitle "playchess.com"]
[Source "ChessBase"]
[SourceQuality "1"]
[TimeControl "6600+10"]

1. d4 {[%emt 0:00:00]} d5 {[%emt 0:00:00]} 2. Nf3 {[%emt 0:00:00]} Nf6 {[%emt 0:00:01]} 3. g3 {[%emt 0:00:00]} c5 {[%emt 0:00:26]} 4. Bg2 {[%emt 0:00:01]} Nc6 {[%emt 0:00:16]} 5. O-O {[%emt 0:00:02]} e6 {[%emt 0:01:36]} 6. c4 {[%emt 0:00:06]} a6 {[%emt 0:00:28]} 7. Nc3 {[%emt 0:00:41]} cxd4 {[%emt 0:07:11]} 8. Nxd4 {[%emt 0:00:14]} Nxd4 {[%emt 0:14:59]} 9. Qxd4 {[%emt 0:00:05]} dxc4 {[%emt 0:00:11]} 10. Qxc4 {[%emt 0:00:07]} Bd6 {[%emt 0:03:37]} 11. Rd1 {[%emt 0:00:33]} Qc7 {[%emt 0:00:18]} 12. Qd3 {[%emt 0:00:32]} Be5 {[%emt 0:05:38]} 13. Ne4 {[%emt 0:10:27]} Nxe4 {[%emt 0:13:57]} 14. Bxe4 {[%emt 0:00:06]} f5 {[%emt 0:00:21]} 15. Bg2 {[%emt 0:03:59]} O-O {[%emt 0:01:41]} 16. Rb1 {[%emt 0:01:43]} Rf7 {[%emt 0:01:39]} 17. Qb3 {[%emt 0:02:05]} Rb8 {[%emt 0:20:41]} 18. Bg5 {[%emt 0:02:42]} h6 {[%emt 0:05:18]} 19. Rbc1 {[%emt 0:00:51]} Qa5 {[%emt 0:01:58]} 20. Rd8+ {[%emt 0:01:18]} Rf8 {[%emt 0:06:20]} 21. Rdxc8 {[%emt 0:01:16]} Rbxc8 {[%emt 0:04:26]} 22. Rxc8 {[%emt 0:00:20]} Rxc8 {[%emt 0:03:36]} 23. Qxe6+ {[%emt 0:00:08]} Kh7 {[%emt 0:01:02]} 24. Qxf5+ {[%emt 0:00:14]} g6 {[%emt 0:01:42]} 25. Qd7+ {[%emt 0:00:33]} Bg7 {[%emt 0:00:22]} 26. Qxc8 {[%emt 0:00:37]} hxg5 {[%emt 0:00:11]} 27. Qxb7 {[%emt 0:02:12]} Qxa2 {[%emt 0:00:37]} 28. Be4 {[%emt 0:01:11]} Qxb2 {[%emt 0:02:23]} 29. Qxa6 {[%emt 0:00:24]} Qa1+ {[%emt 0:01:42]} 30. Qxa1 {[%emt 0:00:02]} Bxa1 {[%emt 0:00:02]} 31. Kg2 {[%emt 0:00:26]} Kg7 {[%emt 0:00:07]} 32. Kf3 {[%emt 0:00:17]} Kf6 {[%emt 0:00:02]} 33. Kg4 {[%emt 0:02:12]} Bc3 {[%emt 0:01:41]} 34. Bxg6 {[%emt 0:01:14]} Kxg6 {[%emt 0:00:15]} 35. h4 {[%emt 0:00:03]} gxh4 {[%emt 0:01:08]} 36. Kxh4 {[%emt 0:00:02]} Kf5 {[%emt 0:00:45]} 37. f3 {[%emt 0:00:32]} Bf6+ {[%emt 0:00:37]} 38. Kh5 {[%emt 0:00:21]} Be5 {[%emt 0:00:39]} 39. e4+ {[%emt 0:00:16]} Kf6 {[%emt 0:01:31]} 40. f4 {[%emt 0:00:22]} Bc3 {[%emt 0:00:11]} 41. g4 {[%emt 0:01:14]} Bd2 {[%emt 0:00:35]} 42. g5+ {[%emt 0:00:44]} Kg7 {[%emt 0:01:34]} 43. Kg4 {[%emt 0:01:02]} Kg6 {[%emt 0:00:27]} 44. f5+ {[%emt 0:01:57]} Kg7 {[%emt 0:00:09]} 45. e5 {[%emt 0:01:30]} Bc3 {[%emt 0:00:39]} 46. e6 {[%emt 0:00:24]} Be5 {[%emt 0:00:33]} 47. e7 {[%emt 0:00:48]} Kf7 {[%emt 0:01:09]} 48. f6 {[%emt 0:00:01]} Ke8 {[%emt 0:02:07]} 49. Kf5 {[%emt 0:00:08]} Bd6 {[%emt 0:00:01]} 50. Kg6 {[%emt 0:00:30]} Be5 {[%emt 0:00:29]} 51. Kg7 {[%emt 0:00:57]} Bd4 {[%emt 0:00:11]} 52. Kg8 {[%emt 0:00:17]} Be3 {[%emt 0:00:56]} 53. f7+ {[%emt 0:00:14]} Kxe7 {[%emt 0:00:01]} 54. f8=Q+ {[%emt 0:00:07]} Kd7 {[%emt 0:00:06]} 55. Qf5+ {[%emt 0:00:14]} Ke7 {[%emt 0:00:25]} 56. Qe5+ {[%emt 0:00:05]} Kd7 {[%emt 0:00:02]} 57. Qxe3 {[%emt 0:00:07]} Kd6 {[%emt 0:00:01]} 58. Kf7 {[%emt 0:00:10]} 1-0

[Event "Gibraltar Junior Intl U16 2019"]
[Site "Caleta"]
[Date "2019.08.18"]
[Round "4.17"]
[White "Gutierrez Lupion, Nuria"]
[Black "Garcia Calero, Jose Maria"]
[Result "1/2-1/2"]
[ECO "B70"]
[WhiteElo "1712"]
[BlackElo "1395"]
[Annotator "NA"]
[PlyCount "103"]
[EventDate "2019.08.16"]
[EventType "swiss"]
[EventCountry "GGB"]
[SourceTitle "playchess.com"]
[Source "ChessBase"]
[SourceQuality "1"]
[TimeControl "6600+10"]

1. e4 {[%emt 0:00:03]} c5 {[%emt 0:00:19]} 2. Nf3 {[%emt 0:00:06]} d6 {[%emt 0:00:22]} 3. d4 {[%emt 0:00:07]} cxd4 {[%emt 0:00:08]} 4. Nxd4 {[%emt 0:00:08]} Nf6 {[%emt 0:00:07]} 5. Nc3 {[%emt 0:00:08]} g6 {[%emt 0:00:27]} 6. h3 {[%emt 0:02:34]} Bg7 {[%emt 0:00:33]} 7. g4 {[%emt 0:00:28]} O-O {[%emt 0:02:03]} 8. Bg2 {[%emt 0:01:54]} Qb6 {[%emt 0:25:20]} 9. Nce2 {[%emt 0:14:46]} Nbd7 {[%emt 0:06:02]} 10. c3 {[%emt 0:11:37]} a5 {[%emt 0:18:07]} 11. a4 {[%emt 0:11:17]} Nc5 {[%emt 0:01:54]} 12. Ng3 {[%emt 0:07:28]} Bd7 {[%emt 0:04:23]} 13. O-O {[%emt 0:17:40]} Rac8 {[%emt 0:08:32]} 14. Kh2 {[%emt 0:06:47]} Rfd8 {[%emt 0:14:33]} 15. Re1 {[%emt 0:13:11]} e5 {[%emt 0:09:36]} 16. Nde2 {[%emt 0:02:39]} Nb3 {[%emt 0:01:38]} 17. Be3 {[%emt 0:01:19]} Nc5 {[%emt 0:00:13]} 18. Qc2 {[%emt 0:06:44]} Be6 {[%emt 0:02:11]} 19. Ra3 {[%emt 0:02:55]} Qc7 {[%emt 0:03:01]} 20. b4 {[%emt 0:01:49]} axb4 {[%emt 0:00:59]} 21. cxb4 {[%emt 0:00:10]} Na6 {[%emt 0:01:50]} 22. Qxc7 {[%emt 0:00:32]} Nxc7 {[%emt 0:00:39]} 23. b5 {[%emt 0:01:28]} Bf8 {[%emt 0:00:32]} 24. Rc1 {[%emt 0:00:59]} d5 {[%emt 0:01:18]} 25. Rac3 {[%emt 0:01:47]} Rd7 {[%emt 0:00:57]} 26. Bb6 {[%emt 0:00:42]} Bd6 {[%emt 0:00:36]} 27. Ba5 {[%emt 0:01:40]} d4 {[%emt 0:00:40]} 28. Rxc7 {[%emt 0:01:00]} Bxc7 {[%emt 0:00:59]} 29. b6 {[%emt 0:00:14]} d3 {[%emt 0:00:40]} 30. Rxc7 {[%emt 0:01:49]} Rdxc7 {[%emt 0:01:12]} 31. bxc7 {[%emt 0:00:02]} dxe2 {[%emt 0:00:33]} 32. Nxe2 Ne8 {[%emt 0:00:01]} 33. f4 {[%emt 0:00:19]} exf4 {[%emt 0:00:40]} 34. Nxf4 {[%emt 0:00:02]} Nxc7 {[%emt 0:00:12]} 35. e5 {[%emt 0:00:08]} b5 {[%emt 0:02:42]} 36. Nxe6 {[%emt 0:00:41]} fxe6 {[%emt 0:00:15]} 37. Bxc7 {[%emt 0:00:20]} Rxc7 {[%emt 0:00:06]} 38. axb5 Rc2 {[%emt 0:01:24]} 39. b6 {[%emt 0:00:12]} Rb2 40. b7 {[%emt 0:00:01]} Kf7 {[%emt 0:00:03]} 41. Kg3 {[%emt 0:00:05]} Ke7 {[%emt 0:00:38]} 42. Kf4 {[%emt 0:00:34]} h6 {[%emt 0:00:27]} 43. h4 {[%emt 0:00:28]} Kf7 {[%emt 0:00:05]} 44. Be4 {[%emt 0:00:05]} Kg7 {[%emt 0:00:13]} 45. Bf3 {[%emt 0:00:12]} Kf7 {[%emt 0:00:04]} 46. Be4 Kg7 {[%emt 0:00:04]} 47. Bf3 {[%emt 0:00:06]} Kf7 {[%emt 0:00:17]} 48. Ke3 {[%emt 0:00:13]} g5 {[%emt 0:00:17]} 49. h5 {[%emt 0:00:04]} Ke7 {[%emt 0:00:04]} 50. Kd4 {[%emt 0:00:05]} Kd7 {[%emt 0:00:14]} 51. Kc5 {[%emt 0:00:25]} Kc7 {[%emt 0:00:10]} 52. Kd4 {[%emt 0:00:12]} 1/2-1/2